bitfinex-derivatives/quotes_ETHF0:USTF0_20250317
["timestamp","ask_amount","ask_price","bid_price","bid_amount"]
[1742231098514,1.75434,1918.9,1918.8,0.7126]
[1742231099122,1.0424,1918.8,1918.7,3.2078]
[1742231099313,4.55841,1918.8,1918.7,1.04245]
[1742231099521,3.516,1918.8,1918.7,4.25025]
[1742231100219,1.75435,1918.9,1918.7,4.25025]
[1742231100220,0.712,1918.9,1918.8,1.0424]
[1742231101716,34.751,1919.7,1918.8,6.017]
[1742231101923,34.751,1919.7,1919.3,3.2078]
[1742231101924,1.4032,1919.6,1919.3,3.2078]
[1742231102112,1.4032,1919.6,1919.4,0.6699]
[1742231102313,1.04202,1919.5,1919.4,0.6699]
[1742231103121,1.04202,1919.5,1919.4,1.71197]
[1742231103421,43.2452,1919.6,1919.4,1.71197]
[1742231103608,1.04202,1919.5,1919.4,1.71197]
[1742231103813,1.04202,1919.5,1919.4,0.6699]
[1742231104013,1.04202,1919.5,1919.4,1.71197]
[1742231104421,1.04202,1919.5,1919.4,0.6699]
[1742231105416,2.40262,1919.5,1919.4,1.71197]
[1742231105622,2.40262,1919.5,1919.4,0.6699]
[1742231106425,5.91862,1919.5,1919.4,0.6699]
[1742231108018,3.2078,1919.7,1919.4,0.6699]
[1742231108218,1.381,1919.7,1919.6,1.04196]
[1742231108422,1.04191,1919.7,1919.6,1.04196]
[1742231108623,41.84191,1919.7,1919.6,1.04196]
[1742231108823,40.8,1919.7,1919.6,1.04196]
[1742231109023,3.9209,1919.9,1919.5,3.2078]
[1742231109024,1.75494,1919.9,1919.5,3.2078]
[1742231109219,4.55785,1919.8,1919.7,1.04188]
[1742231109414,3.516,1919.8,1919.7,1.04188]
[1742231110225,4.55785,1919.8,1919.7,1.04188]
[1742231110625,1.04195,1919.7,1919.6,1.04196]
[1742231110926,3.516,1919.8,1919.6,1.04196]
[1742231110927,4.5579,1919.8,1919.6,1.04196]
[1742231111326,4.5579,1919.8,1919.7,1.04191]
[1742231112120,4.55789,1919.8,1919.7,1.04191]
[1742231112725,4.55789,1919.8,1919.5,3.887]
[1742231112726,46.07093,1919.9,1919.5,3.887]
[1742231112927,46.07093,1919.9,1919.7,1.04188]
[1742231113231,0.7131,1919.9,1919.8,1.04185]
[1742231113630,1.7549,1919.9,1919.8,1.04185]
[1742231113831,1.7549,1919.9,1919.8,1.70275]
[1742231114029,1.04191,1919.7,1919.6,1.04195]
[1742231114426,0.7131,1919.9,1919.7,1.04189]
[1742231114621,1.04184,1919.9,1919.7,1.04188]
[1742231114827,1.04185,1919.8,1919.7,1.04188]
[1742231115126,1.04185,1919.8,1919.7,1.04191]
[1742231115828,0.7244,1919.9,1919.6,3.97409]
[1742231116128,0.7244,1919.9,1919.8,1.04185]
[1742231116325,10.0,1920.0,1919.9,1.0418]
[1742231117129,10.0,1920.0,1919.9,5.6717]
[1742231118523,5.97632012,1920.0,1919.9,5.6717]
[1742231118718,3.515,1920.8,1920.1,2.60414]
[1742231118937,0.7232,1920.6,1920.2,10.74899]
[1742231119122,0.6771,1920.5,1920.4,4.24929]
[1742231119426,0.7232,1920.6,1920.5,1.04147]
[1742231119633,0.7232,1920.6,1920.5,2.39127]
[1742231119823,1.76462,1920.6,1920.5,2.39127]
[1742231120024,0.7232,1920.6,1920.5,2.39127]
[1742231120530,1.72041,1920.7,1920.5,2.39127]
[1742231120531,1.72037,1920.7,1920.6,1.04142]
[1742231120731,0.679,1920.7,1920.6,5.59902]
[1742231120923,1.72037,1920.7,1920.6,5.59902]
[1742231121122,0.679,1920.7,1920.6,5.59902]
[1742231121325,3.515,1920.9,1920.6,4.5576]
[1742231121530,1.72029,1920.9,1920.7,2.39113]
[1742231121722,1.72029,1920.9,1920.8,1.3498]
[1742231122129,1.04136,1920.8,1920.7,1.04137]
[1742231122322,1.04136,1920.8,1920.7,1.3496]
[1742231122627,0.679,1920.9,1920.7,2.39095]
[1742231122828,0.679,1920.9,1920.8,1.04131]
[1742231123025,0.679,1920.9,1920.8,2.39091]
[1742231123421,2.60263,1921.3,1920.8,2.39091]
[1742231123422,4.8889,1921.4,1920.8,8.0714]
[1742231123733,4.8889,1921.4,1921.0,1.04119]
[1742231123934,1.04114,1921.2,1921.1,1.3496]
[1742231124228,1.0412,1921.1,1920.9,3.2078]
[1742231124430,2.60264,1921.3,1920.8,4.55528]
[1742231124625,1.04124,1921.0,1920.8,2.39089]
[1742231124834,0.6732,1920.9,1920.8,2.39089]
[1742231125431,0.6732,1920.9,1920.8,1.3496]
[1742231125432,3.04346,1920.9,1920.8,1.3496]
[1742231125638,2.0022,1920.9,1920.5,7.4426]
[1742231125828,3.07425,1920.8,1920.6,2.39502]
[1742231126029,2.37037,1920.7,1920.6,1.3536]
[1742231126330,1.329,1920.7,1920.6,1.04142]
[1742231126527,1.329,1920.7,1920.6,2.39502]
[1742231127133,0.6732,1920.9,1920.6,1.3536]
[1742231127336,1.329,1920.9,1920.8,4.24911]
[1742231127535,1.04118,1921.1,1920.9,1.04122]
[1742231127737,1.329,1921.0,1920.9,2.39482]
[1742231130333,1.3657,1921.2,1920.9,1.3536]
[1742231130530,2.35085,1921.1,1921.0,1.3222]
[1742231130933,1.0412,1921.0,1920.9,2.36342]
[1742231131131,2.3509,1921.0,1920.9,2.36342]
[1742231131633,2.3509,1921.0,1920.9,1.3222]
[1742231131838,2.3509,1921.0,1920.9,2.36346]
[1742231132144,1.3097,1921.0,1920.9,2.36346]
[1742231132438,1.3097,1921.0,1920.8,4.24907]
[1742231132639,2.35092,1921.0,1920.8,3.2078]
[1742231132934,1.04126,1920.9,1920.7,2.39634]
[1742231133243,1.04131,1920.8,1920.7,1.355]
[1742231133436,1.04137,1920.7,1920.6,4.24922]
[1742231133631,1.3119,1920.7,1920.6,5.60422]
[1742231134236,1.3119,1920.7,1920.5,1.04145]
[1742231134237,1.04142,1920.6,1920.5,1.04145]
[1742231134540,1.04153,1920.4,1920.3,0.00782431]
[1742231135036,1.04153,1920.4,1920.3,1.42102431]
[1742231135538,1.04153,1920.4,1920.3,0.00782431]
[1742231135732,2.38533,1920.4,1920.3,0.00782431]
[1742231136035,5.89733,1920.4,1920.3,0.00782431]
[1742231137138,7.34073,1920.4,1920.3,0.00782431]
[1742231137734,10.54953,1920.4,1920.3,0.00782431]
[1742231138237,7.34173,1920.4,1920.3,0.00782431]
[1742231139933,1.04177,1920.0,1919.9,1.04179]
[1742231140131,1.04172,1920.1,1920.0,1.04173]
[1742231140332,1.04172,1920.1,1920.0,1.04175]
[1742231140538,1.3898,1920.1,1920.0,1.04175]
[1742231140945,2.43149,1920.1,1920.0,1.04175]
[1742231141128,2.43149,1920.1,1919.9,2.47518431]
[1742231141332,1.3898,1920.0,1919.9,2.47518431]
[1742231141827,0.00782431,1920.2,1919.9,1.43342431]
[1742231142138,0.00782431,1920.2,1920.1,1.04169]
[1742231142534,0.00782431,1920.2,1920.1,2.40829]
[1742231143644,1.33112431,1920.2,1920.1,2.40829]
[1742231144737,0.00782431,1920.2,1920.1,2.40829]
[1742231145633,0.7082,1920.7,1920.6,1.04142]
[1742231145840,1.72369,1920.9,1920.8,1.04131]
[1742231146033,1.3801,1920.9,1920.8,1.04131]
[1742231146438,1.04115,1921.1,1921.0,1.0412]
[1742231146644,4.55415,1921.2,1920.9,3.2078]
[1742231146937,1.4025,1921.1,1921.0,2.46267]
[1742231147941,1.3947,1921.3,1921.2,1.04109]
[1742231148136,1.3947,1921.3,1921.0,4.6293]
[1742231148344,1.3947,1921.3,1920.9,4.56206431]
[1742231148345,1.04115,1921.1,1920.9,4.56206431]
[1742231148646,1.0412,1921.0,1920.9,0.00782431]
[1742231148833,1.04115,1921.1,1921.0,1.0412]
[1742231149038,1.04115,1921.1,1920.9,1.04905431]
[1742231149239,2.4437,1921.0,1920.9,1.42932431]
[1742231149639,2.4437,1921.0,1920.9,0.00782431]
[1742231150250,1.4025,1921.0,1920.9,1.04908431]
[1742231150541,2.4437,1921.0,1920.9,0.00782431]
[1742231151343,1.4025,1921.0,1920.9,1.04908431]
[1742231151545,1.4025,1921.0,1920.9,2.49708431]
[1742231151947,2.43577,1921.3,1921.1,1.04111]
[1742231152247,1.4144,1921.2,1921.0,3.2078]
[1742231152551,1.4144,1921.2,1921.1,1.04115]
[1742231153152,1.04115,1921.1,1920.9,1.04907431]
[1742231153456,1.3247,1921.0,1920.9,1.04907431]
[1742231153752,2.3659,1921.0,1920.9,1.04907431]
[1742231154051,1.3247,1921.0,1920.9,1.04907431]
[1742231154252,1.3247,1921.0,1920.9,4.25687431]
[1742231155152,2.3659,1921.0,1920.9,4.25687431]
[1742231155851,1.3247,1921.0,1920.9,4.25687431]
[1742231156850,2.3659,1921.0,1920.9,4.25687431]
[1742231157250,1.3247,1921.0,1920.9,4.25687431]
[1742231157553,1.3247,1921.0,1920.9,1.04907431]
[1742231157845,2.3659,1921.0,1920.9,0.00782431]
[1742231158355,1.04139,1920.7,1920.5,7.76023]
[1742231158656,1.04144,1920.6,1920.4,1.04148]
[1742231158847,0.6801,1920.5,1920.4,1.04148]
[1742231159543,3.15647,1920.5,1920.4,1.04148]
[1742231159746,1.04153,1920.4,1920.3,0.00782431]
[1742231159942,2.47643,1920.4,1920.3,0.00782431]
[1742231160447,1.4349,1920.4,1920.3,1.04940431]
[1742231161252,1.4349,1920.4,1920.3,4.25720431]
[1742231162354,2.47643,1920.4,1920.3,4.25720431]
[1742231162651,1.4349,1920.4,1920.3,1.04940431]
[1742231163356,0.71802431,1920.6,1920.5,1.04147]
[1742231163553,0.71802431,1920.6,1920.5,4.24927]
[1742231163554,0.00782431,1920.6,1920.5,4.24927]
[1742231163858,0.00782431,1920.6,1920.5,7.76127]
[1742231164648,1.04107,1921.3,1921.2,1.04108]
[1742231164849,3.94511,1921.4,1920.9,3.2078]
[1742231165050,7.45711,1921.4,1920.8,6.11528]
[1742231165353,7.45711,1921.4,1921.1,1.04114]
[1742231165354,1.04114,1921.2,1921.1,1.04114]
[1742231166357,1.3358,1921.3,1921.2,1.04109]
[1742231166549,2.60197,1921.8,1921.2,2.43229]
[1742231166751,0.6884,1921.5,1921.4,1.04096]
[1742231168859,1.4125,1921.7,1921.6,5.90678]
[1742231169058,1.73741,1922.0,1921.9,1.04072]
[1742231169359,42.53738,1922.0,1921.8,1.04077]
[1742231169556,41.4967,1922.0,1921.7,3.2078]
[1742231169754,42.5374,1922.0,1921.9,1.04072]
[1742231169954,42.5374,1922.0,1921.7,3.2078]
[1742231170259,1.04074,1921.9,1921.7,3.2078]
[1742231170457,2.45324,1921.9,1921.8,1.3549]
[1742231170646,1.4125,1921.9,1921.8,2.39567]
[1742231170852,1.4125,1921.9,1921.5,3.2078]
[1742231171052,1.4125,1921.9,1921.6,1.04084]
[1742231171053,1.04078,1921.8,1921.6,1.04084]
[1742231171254,1.317,1921.7,1921.6,1.04084]
[1742231171758,1.317,1921.7,1921.5,9.1205]
[1742231171953,1.04088,1921.6,1921.5,7.7597]
[1742231172159,2.35784,1921.7,1921.5,6.7188]
[1742231172352,1.04088,1921.6,1921.5,6.7188]
[1742231172548,1.317,1921.6,1921.3,1.04883431]
[1742231172748,1.04099,1921.4,1921.3,0.00782431]
[1742231173062,0.7167,1921.5,1921.3,0.00782431]
[1742231173264,0.7167,1921.5,1921.4,4.24879]
[1742231174660,0.6746,1921.6,1921.5,1.04093]
[1742231174857,0.6746,1921.6,1921.5,2.47023]
[1742231175065,4.5508,1921.8,1921.5,1.4293]
[1742231175066,3.51,1921.8,1921.5,1.4293]
[1742231175257,1.04077,1921.8,1921.7,1.04082]
[1742231175750,1.04077,1921.8,1921.7,2.47012]
[1742231175947,1.04077,1921.8,1921.7,1.4293]
[1742231176353,1.04087,1921.7,1921.5,1.04091]
[1742231176554,1.04088,1921.6,1921.5,1.4293]
[1742231176765,1.04088,1921.6,1921.5,2.47021]
[1742231177348,1.04088,1921.6,1921.5,1.4293]
[1742231177549,3.51,1921.7,1921.4,5.59166]
[1742231177853,3.51,1921.7,1921.3,1.04883431]
[1742231178053,1.0409,1921.6,1921.4,3.2078]
[1742231178252,1.4227,1921.9,1921.3,0.00782431]
[1742231178459,1.04099,1921.4,1921.3,0.00782431]
[1742231178652,4.55099,1921.4,1921.3,0.00782431]
[1742231178859,5.27619,1921.4,1921.3,0.00782431]
[1742231179265,8.57013734,1921.4,1921.3,0.00782431]
[1742231179763,5.36233734,1921.4,1921.3,0.00782431]
[1742231180257,5.36233859,1921.4,1921.3,0.00782431]
[1742231180458,5.27619,1921.4,1921.3,0.00782431]
[1742231180663,5.36233503,1921.4,1921.3,0.00782431]
[1742231180960,8.57013503,1921.4,1921.3,0.00782431]
[1742231181155,8.48399,1921.4,1921.3,0.00782431]
[1742231181356,0.08614966,1921.4,1921.3,0.00782431]
[1742231181558,0.6661,1921.7,1921.4,1.04099]
[1742231181865,1.70694,1921.7,1921.5,5.6321]
[1742231182057,2.38984,1921.7,1921.5,5.6321]
[1742231182367,1.349,1921.7,1921.6,1.04088]
[1742231182661,0.6829,1921.7,1921.6,1.04088]
[1742231183057,1.72372,1921.7,1921.6,1.04088]
[1742231183458,0.6829,1921.7,1921.6,1.04088]
[1742231183959,0.7199,1921.9,1921.8,1.04077]
[1742231184654,1.75678,1922.0,1921.8,1.04077]
[1742231184655,0.7161,1922.0,1921.9,1.04072]
[1742231185561,2.1028,1922.0,1921.9,4.24852]
[1742231185760,0.7199,1922.2,1922.1,1.04061]
[1742231185957,1.76045,1922.2,1922.1,1.04061]
[1742231186760,0.7199,1922.2,1922.0,1.3253]
[1742231186965,2.43042,1922.1,1922.0,1.04065]
[1742231187261,3.14542,1922.1,1922.0,1.04066]
[1742231187559,2.1048,1922.1,1922.0,1.04066]
[1742231187765,2.1048,1922.1,1921.9,3.2078]
[1742231187967,3.14543,1922.1,1921.9,5.57377]
[1742231188166,1.04066,1922.0,1921.9,5.5738]
[1742231188458,1.3898,1922.0,1921.6,0.6782]
[1742231188657,1.3898,1922.0,1921.7,2.36609]
[1742231188858,1.04075,1921.9,1921.7,2.36609]
[1742231189052,1.3172,1921.8,1921.7,2.36609]
[1742231189457,2.35797,1921.8,1921.7,1.3253]
[1742231189762,3.03137,1921.8,1921.7,1.3253]
[1742231189963,3.03137,1921.8,1921.7,2.36612]
[1742231190264,3.03137,1921.8,1921.7,1.3253]
[1742231190462,1.04082,1921.7,1921.6,2.46694]
[1742231190665,1.04097,1921.5,1921.3,3.21562431]
[1742231190863,2.35819,1921.4,1921.3,4.25663431]
[1742231191056,1.3172,1921.4,1921.3,4.25663431]
[1742231191257,5.21025,1921.7,1921.5,1.04088]
[1742231191469,5.21025,1921.7,1921.5,4.24873]
[1742231191470,1.3172,1921.6,1921.5,4.24873]
[1742231191655,2.35808,1921.6,1921.5,3.2078]
[1742231191966,2.35808,1921.6,1921.4,1.04093]
[1742231192264,1.3331,1921.5,1921.4,4.24873]
[1742231192465,0.6604,1921.7,1921.6,1.04088]
[1742231192657,0.6604,1921.7,1921.6,4.24868]
[1742231193261,0.6604,1921.7,1921.5,3.2078]
[1742231193464,1.70124,1921.7,1921.5,1.04092]
[1742231193669,1.70124,1921.7,1921.4,4.95134]
[1742231193967,1.3331,1921.6,1921.5,1.04093]
[1742231194465,0.6604,1921.7,1921.6,1.04088]
[1742231194768,0.6734,1921.8,1921.7,1.04082]
[1742231195868,1.3065,1921.9,1921.8,1.04077]
[1742231197465,0.674,1922.1,1922.0,1.04066]
[1742231198371,1.3065,1922.2,1922.1,1.04061]
[1742231200172,2.34705,1922.2,1922.1,1.04061]
[1742231200472,1.3065,1922.2,1922.1,1.04061]
[1742231200674,2.34705,1922.2,1922.1,1.04061]
[1742231200873,1.3065,1922.2,1922.1,1.04061]
[1742231201468,1.04062,1922.1,1922.0,1.04064]
[1742231201770,2.34708,1922.2,1922.0,1.04066]
[1742231201969,1.04061,1922.1,1921.9,3.2078]
[1742231202273,1.4306,1922.0,1921.9,4.24852]
[1742231203371,5.2624,1922.3,1922.1,1.04057]
[1742231203562,4.2219,1922.3,1922.2,1.04055]
[1742231203768,5.2624,1922.3,1922.2,1.04055]
[1742231203971,0.6542,1922.4,1922.3,1.0405]
[1742231204169,0.6634,1922.6,1922.5,1.04039]
[1742231204767,2.0291,1922.6,1922.5,4.24819]
[1742231204972,1.3657,1922.6,1922.5,4.24819]
[1742231205168,1.70355,1923.0,1922.5,3.2078]
[1742231205373,41.84018,1922.9,1922.8,1.04021]
[1742231205676,41.84018,1922.9,1922.8,1.04023]
[1742231205677,42.1657,1922.9,1922.8,1.04023]
[1742231205971,1.3657,1922.9,1922.8,1.04023]
[1742231206366,2.40587,1922.9,1922.8,1.04023]
[1742231206565,1.3657,1922.9,1922.8,1.04023]
[1742231207877,2.40587,1922.9,1922.8,1.04023]
[1742231208265,2.60058,1922.8,1922.4,0.00780376]
[1742231208462,1.04066,1922.0,1921.9,2.0614]
[1742231208672,1.04066,1922.0,1921.9,0.6536]
[1742231209374,2.43576,1922.0,1921.9,0.6536]
[1742231209575,2.43576,1922.0,1921.9,1.69432]
[1742231209875,1.04072,1921.9,1921.8,0.00780376]
[1742231210176,2.43582,1921.9,1921.8,0.00780376]
[1742231210773,5.94382,1921.9,1921.8,0.00780376]
[1742231210976,1.04097,1921.5,1921.3,3.2078]
[1742231211168,1.04093,1921.5,1921.4,1.3173]
[1742231211372,1.04093,1921.5,1921.3,3.9037]
[1742231211373,1.04093,1921.5,1921.3,1.7369]
[1742231211568,1.3251,1921.4,1921.3,1.7369]
[1742231211775,1.3251,1921.4,1921.3,1.73694]
[1742231212074,2.36609,1921.4,1921.3,1.73694]
[1742231212277,2.36609,1921.4,1921.3,0.6959]
[1742231212465,1.3251,1921.4,1921.2,0.00780376]
[1742231212773,1.04104,1921.3,1921.2,0.00780376]
[1742231213575,1.04104,1921.3,1921.2,1.04889376]
[1742231213778,1.3251,1921.4,1921.2,0.00780376]
[1742231213971,2.36611,1921.4,1921.3,1.04104]
[1742231214373,2.36611,1921.4,1921.2,2.40706376]
[1742231214574,1.04104,1921.3,1921.2,2.40706376]
[1742231214779,1.3307,1921.3,1921.2,2.40706376]
[1742231215078,3.508,1921.5,1921.4,1.04095]
[1742231215272,1.3307,1921.5,1921.4,1.04095]
[1742231215672,1.3307,1921.5,1921.4,2.39915]
[1742231216177,7.4092,1922.0,1921.9,1.04072]
[1742231216478,0.00773525,1922.1,1921.6,3.2078]
[1742231216679,3.52473525,1922.1,1922.0,1.04066]
[1742231216877,0.00773525,1922.1,1922.0,1.04066]
[1742231217581,2.44634525,1922.1,1921.9,1.4362]
[1742231217783,1.04066,1922.0,1921.9,2.47688]
[1742231217982,1.398,1922.0,1921.7,3.517]
[1742231218175,1.04074,1921.9,1921.8,1.04076]
[1742231218574,1.04072,1921.9,1921.7,3.517]
[1742231218873,1.398,1921.8,1921.7,4.55779]
[1742231219278,1.398,1921.8,1921.6,2.47704]
[1742231219577,1.398,1921.8,1921.5,0.6889]
[1742231219780,1.398,1921.8,1921.7,1.04082]
[1742231219781,5.9578,1921.8,1921.7,1.04082]
[1742231220083,1.398,1921.8,1921.7,4.24862]
[1742231220279,0.00773525,1922.1,1921.7,4.24862]
[1742231220491,1.3416,1922.0,1921.9,4.24852]
[1742231220981,1.3416,1922.0,1921.9,4.94912]
[1742231221882,0.00773525,1922.1,1922.0,1.04066]
[1742231222082,1.34933525,1922.1,1922.0,2.48866]
[1742231222487,2.38994525,1922.1,1922.0,1.04066]
[1742231222780,1.04066,1922.0,1921.8,1.4141]
[1742231222973,1.334,1921.9,1921.7,0.6931]
[1742231223175,1.334,1921.9,1921.8,1.04077]
[1742231224378,1.334,1921.9,1921.8,4.24857]
[1742231227578,1.334,1921.9,1921.7,3.14801]
[1742231227784,1.04082,1921.7,1921.6,2.48474]
[1742231227984,1.70881,1921.8,1921.7,1.04082]
[1742231228187,2.36641,1921.8,1921.7,1.04082]
[1742231228586,2.7508,1921.8,1921.7,1.04082]
[1742231228786,2.0828,1921.8,1921.7,2.49102]
[1742231229087,1.4252,1921.8,1921.7,2.49102]
[1742231229887,1.04835525,1922.1,1922.0,1.04066]
[1742231230186,1.04834525,1922.1,1922.0,1.04066]
[1742231230582,0.00773525,1922.1,1922.0,2.49086]
[1742231230780,1.43293525,1922.1,1922.0,2.49086]
[1742231231988,0.00773525,1922.1,1922.0,2.49086]
[1742231232281,0.00773525,1922.1,1922.0,6.00986]
[1742231233488,0.00773525,1922.1,1922.0,14.47586]
[1742231233786,3.52,1922.8,1922.7,1.04028]
[1742231233986,1.3109,1922.8,1922.7,1.04028]
[1742231234589,1.3109,1922.8,1922.7,2.48898]
[1742231234787,2.1508,1923.0,1922.9,1.04017]
[1742231235291,0.00780376,1923.1,1923.0,1.04012]
[1742231235590,0.00780376,1923.1,1923.0,2.48882]
[1742231235591,1.45830376,1923.1,1923.0,2.48882]
[1742231237075,1.45830376,1923.1,1922.8,1.73351]
[1742231237387,1.04027,1922.8,1922.6,1.04811376]
[1742231237579,1.3997,1922.7,1922.6,1.04811376]
[1742231237974,43.23998,1922.7,1922.6,0.00780376]
[1742231239086,42.1997,1922.7,1922.3,4.97277]
[1742231239285,8.1385,1922.6,1922.2,1.3546]
[1742231239485,2.44013,1922.5,1922.3,2.39506]
[1742231239690,3.531,1922.6,1922.3,5.60286]
[1742231239691,2.44014,1922.4,1922.3,5.60286]
[1742231239890,1.3997,1922.4,1922.3,2.39506]
[1742231240394,2.44014,1922.4,1922.3,2.39506]
[1742231241095,1.3997,1922.4,1922.3,2.3951]
[1742231241385,1.0405,1922.3,1922.2,0.00780376]
[1742231241585,1.7425,1922.3,1922.2,1.04835376]
[1742231241890,1.7425,1922.3,1922.2,0.00780376]
[1742231241891,3.1571,1922.3,1922.2,0.00780376]
[1742231242091,3.1571,1922.3,1922.2,1.04835376]
[1742231242394,2.1166,1922.3,1922.2,1.04835376]
[1742231243185,1.4146,1922.3,1922.2,4.25615376]
[1742231243590,1.0403,1922.7,1922.6,1.04031]
[1742231243787,5.26928,1922.8,1922.7,1.04028]
[1742231243984,0.702,1922.8,1922.6,4.24812]
[1742231244189,0.702,1922.8,1922.7,1.04028]
[1742231244391,4.1968,1923.0,1922.8,1.0402]
[1742231244592,1.04023,1922.8,1922.7,1.04023]
[1742231244790,1.04023,1922.8,1922.6,1.0403]
[1742231245092,1.04034,1922.6,1922.5,1.04035]
[1742231245287,2.0856,1922.7,1922.5,1.04035]
[1742231245693,2.43334,1922.6,1922.4,3.14152]
[1742231245888,1.04044,1922.4,1922.3,1.04048]
[1742231246196,2.43343,1922.5,1922.3,1.04048]
[1742231246396,2.43343,1922.5,1922.3,1.4411]
[1742231246597,1.393,1922.4,1922.3,1.4411]
[1742231246995,1.393,1922.4,1922.3,2.4816]
[1742231247195,1.393,1922.4,1922.3,5.6894]
[1742231249601,1.393,1922.4,1922.3,2.4816]
[1742231249801,1.393,1922.4,1922.3,5.6894]
[1742231250292,0.6926,1922.7,1922.6,1.04034]
[1742231251794,2.0513,1922.7,1922.6,1.04034]
[1742231251998,3.09158,1922.7,1922.6,1.04034]
[1742231252203,1.04037,1922.6,1922.3,3.529]
[1742231252401,2.39907,1922.6,1922.5,1.04039]
[1742231252592,1.04039,1922.5,1922.4,2.4619]
[1742231252795,3.19789,1922.5,1922.3,1.0405]
[1742231252998,3.19789,1922.5,1922.4,1.04044]
[1742231253200,1.75389,1922.5,1922.4,1.04044]
[1742231253495,0.7135,1922.5,1922.4,1.04044]
[1742231253901,0.7135,1922.5,1922.3,4.6531]
[1742231254102,0.7135,1922.5,1922.4,1.04044]
[1742231254396,1.75389,1922.5,1922.4,1.04044]
[1742231254602,1.04044,1922.4,1922.3,1.04046]
[1742231254799,0.7135,1922.5,1922.4,1.04044]
[1742231255306,0.7135,1922.5,1922.4,2.48574]
[1742231255706,0.7135,1922.5,1922.4,1.04044]
[1742231256404,0.7135,1922.5,1922.4,2.39994]
[1742231257400,1.75389,1922.5,1922.4,1.3595]
[1742231257596,0.7135,1922.5,1922.4,1.04044]
[1742231258202,0.7135,1922.5,1922.4,2.39994]
[1742231261497,41.84789376,1923.1,1922.6,2.60081]
[1742231261698,1.38100376,1923.1,1923.0,1.04012]
[1742231262810,1.38100376,1923.1,1922.9,1.04013]
[1742231263006,1.04015,1923.0,1922.8,1.04019]
[1742231263206,1.04017,1922.9,1922.8,1.04019]
[1742231263406,1.04016,1923.0,1922.8,1.04019]
[1742231263602,1.04016,1923.0,1922.9,1.04017]
[1742231263912,1.04016,1923.0,1922.8,2.34839]
[1742231264114,1.04016,1923.0,1922.9,1.04017]
[1742231264416,2.42110376,1923.1,1923.0,1.04012]
[1742231264719,2.42110376,1923.1,1922.9,1.04013]
[1742231265915,1.365,1923.0,1922.9,1.04013]
[1742231266111,2.40516,1923.0,1922.8,2.34839]
[1742231266307,2.40516,1923.0,1922.8,1.04019]
[1742231266503,1.365,1922.9,1922.8,1.04019]
[1742231267204,1.365,1922.9,1922.8,2.39729]
[1742231267607,2.40517,1922.9,1922.8,2.39729]
[1742231267808,1.365,1922.9,1922.7,0.6596]
[1742231268013,1.365,1922.8,1922.7,1.69988]
[1742231268609,1.365,1922.8,1922.7,4.90768]
[1742231270307,1.365,1922.8,1922.7,1.69988]
[1742231270609,1.365,1922.8,1922.7,4.90768]
[1742231278007,3.507,1923.0,1922.7,4.90768]
[1742231278008,3.507,1923.0,1922.9,1.04017]
[1742231278209,4.54712,1923.0,1922.9,1.04017]
[1742231278405,3.507,1923.0,1922.9,1.04017]
[1742231278609,4.54712,1923.0,1922.9,1.04017]
[1742231278815,3.507,1923.0,1922.9,1.04017]
[1742231279318,5.87112,1923.0,1922.9,1.04017]
[1742231280513,2.36412,1923.0,1922.9,1.04017]
[1742231281014,1.0402,1922.9,1922.8,1.04021]
[1742231281321,1.4359,1922.9,1922.8,1.04021]
[1742231282208,0.69970376,1923.1,1923.0,1.04012]
[1742231282413,0.69970376,1923.1,1923.0,4.24792]
[1742231282806,0.00780376,1923.1,1923.0,4.24792]
[1742231285412,1.40580376,1923.1,1923.0,4.24792]
[1742231288020,1.40580376,1923.1,1923.0,1.04012]
[1742231288721,2.44587376,1923.1,1923.0,1.04012]
[1742231288918,4.91280376,1923.1,1922.7,0.6596]
[1742231289123,1.408,1923.0,1922.9,1.04016]
[1742231289317,2.44812,1923.0,1922.9,1.04016]
[1742231289621,1.408,1923.0,1922.8,1.4038]
[1742231289824,1.9957,1922.9,1922.8,1.04023]
[1742231290123,3.73707,1922.9,1922.8,1.04023]
[1742231290325,2.6969,1922.9,1922.8,1.04023]
[1742231291324,1.9957,1922.9,1922.8,2.34993]
[1742231291519,1.9957,1922.9,1922.8,5.55773]
[1742231291712,1.31,1922.9,1922.8,5.55773]
[1742231292118,1.31,1922.9,1922.8,1.04023]
[1742231292523,1.9673,1922.9,1922.8,1.04023]
[1742231293127,3.00747,1922.9,1922.8,1.04023]
[1742231293324,1.04023,1922.8,1922.7,0.6596]
[1742231293522,1.04023,1922.8,1922.5,1.3912]
[1742231293523,1.9848,1922.8,1922.5,1.3912]
[1742231293824,1.04031,1922.7,1922.6,1.04033]
[1742231294125,2.34751,1922.7,1922.6,1.04033]
[1742231294319,2.34751,1922.7,1922.6,1.04034]
[1742231294525,1.3072,1922.7,1922.5,1.3912]
[1742231294719,1.3072,1922.7,1922.5,2.43159]
[1742231294720,1.3072,1922.6,1922.5,2.43159]
[1742231294920,1.3072,1922.6,1922.5,1.04039]
[1742231295929,7.3142,1922.6,1922.2,1.04833376]
[1742231296128,1.0405,1922.3,1922.2,1.04833376]
[1742231296327,3.507,1922.3,1922.2,1.04833376]
[1742231296528,4.5475,1922.3,1922.2,0.00780376]
[1742231297029,4.8178,1922.3,1922.2,1.04835376]
[1742231297630,5.8583,1922.3,1922.2,0.00780376]
[1742231298430,1.04061,1922.1,1922.0,0.52]
[1742231298734,1.04061,1922.1,1922.0,1.56066]
[1742231298735,3.507,1922.1,1922.0,1.56066]